bitfinex/quotes_ETHUSD_20260313
["timestamp","ask_amount","ask_price","bid_price","bid_amount"]
[1773392561666,0.002,2103.9,2103.5,1.6728665]
[1773392562165,4.75262582,2104.2,2103.6,2.02340326]
[1773392562166,1.18809999,2104.2,2103.6,2.02340326]
[1773392562461,1.18809999,2104.2,2103.7,0.48440326]
[1773392563570,1.18798707,2104.4,2103.7,0.48440326]
[1773392563766,0.47861818,2104.2,2103.6,1.539]
[1773392565853,1.18815645,2104.1,2103.6,1.539]
[1773392567273,1.18814458,2104.2,2103.7,0.49070724]
[1773392567776,1.18800855,2104.4,2103.7,0.49070724]
[1773392568080,1.18800855,2104.4,2103.7,1.67907721]
[1773392568246,1.18800855,2104.4,2103.8,0.49070724]
[1773392569861,4.75130026,2104.7,2103.9,1.1882694]
[1773392570057,5.20662477,2104.7,2103.9,0.49070724]
[1773392570851,0.48425905,2104.6,2103.7,1.23588004]
[1773392571062,0.48425905,2104.6,2103.6,3.18330913]
[1773392571463,0.48425905,2104.6,2103.6,3.18334754]
[1773392571667,0.48425905,2104.4,2103.6,3.18334754]
[1773392571861,0.48425905,2104.2,2103.6,1.99491394]
[1773392572069,2.49498187,2104.2,2103.8,0.001]
[1773392572584,1.18804352,2104.3,2103.8,0.001]
[1773392573190,1.18802081,2104.4,2103.8,0.45691394]
[1773392573689,1.18996928,2104.5,2103.8,0.45691394]
[1773392573898,1.18996928,2104.5,2104.0,0.45591394]
[1773392573899,0.002,2104.5,2104.0,0.45591394]
[1773392574110,4.02144564,2105.4,2104.1,0.45591394]
[1773392574111,1.67185108,2105.1,2104.1,0.45591394]
[1773392574301,0.48425905,2105.0,2104.1,0.45591394]
[1773392575207,1.18759203,2105.1,2104.1,0.45591394]
[1773392576312,1.18759203,2105.1,2104.3,0.45591394]
[1773392576519,1.18759203,2105.1,2104.3,1.98791394]
[1773392577423,0.48425905,2104.8,2104.3,1.532]
[1773392577716,0.48425905,2104.7,2104.3,1.532]
[1773392578395,1.18787418,2104.6,2104.3,1.532]
[1773392578605,1.67213323,2104.6,2103.9,1.64415631]
[1773392579415,1.18787418,2104.6,2104.0,0.50344245]
[1773392579611,1.18786339,2104.7,2104.0,0.50344245]
[1773392579811,1.18780704,2104.8,2104.0,0.45591394]
[1773392580018,4.75063347,2105.0,2104.0,0.45591394]
[1773392580694,0.48425905,2104.9,2104.2,0.45591394]
[1773392580894,1.67183577,2105.2,2104.2,0.45591394]
[1773392581292,5.23351809,2105.6,2104.4,0.45591394]
[1773392581707,2.49175119,2105.4,2104.4,0.45591394]
[1773392581888,0.48425905,2105.3,2104.5,1.53]
[1773392582288,0.48425905,2105.3,2104.5,1.98591394]
[1773392582500,2.00749214,2105.4,2104.6,0.45591394]
[1773392582698,4.74952824,2105.5,2104.8,0.45591394]
[1773392583534,1.18725364,2105.7,2104.9,0.45591394]
[1773392583901,5.07928391,2105.8,2104.9,0.45591394]
[1773392583902,1.18724026,2105.8,2104.9,0.45591394]
[1773392584089,4.74840394,2106.0,2104.9,0.45591394]
[1773392585115,1.18708452,2106.1,2105.1,0.45591394]
[1773392585621,1.18708452,2106.1,2105.2,1.98391394]
[1773392585824,1.18708452,2106.1,2105.3,0.45591394]
[1773392586031,1.67134357,2106.1,2105.3,0.45591394]
[1773392586640,0.48425905,2106.2,2105.4,0.45591394]
[1773392586786,0.002,2105.9,2105.4,0.45591394]
[1773392587204,0.002,2105.9,2105.4,0.50170342]
[1773392587821,0.002,2105.9,2105.4,0.04578948]
[1773392588896,0.002,2105.9,2105.4,1.68912539]
[1773392589116,0.002,2105.9,2105.4,0.50170342]
[1773392589753,1.18697179,2106.2,2105.5,0.45591394]
[1773392591842,5.23214624,2106.4,2105.5,1.64325611]
[1773392592148,0.48425905,2106.3,2105.5,0.45591394]
[1773392592344,0.48425905,2106.3,2105.4,0.04578948]
[1773392593831,0.48425905,2106.1,2105.4,0.04578948]
[1773392594350,0.48425905,2106.0,2105.4,0.04578948]
[1773392595246,0.48425905,2106.1,2105.4,0.04578948]
[1773392595449,2.49175119,2105.6,2104.8,0.45591394]
[1773392595751,4.01498428,2106.0,2104.8,0.45591394]
[1773392595752,3.23093335,2105.9,2104.9,0.50342213]
[1773392595955,1.18719726,2105.8,2105.0,0.45591394]
[1773392596124,1.18719726,2105.8,2105.1,0.50341762]
[1773392597564,0.48425905,2105.7,2105.0,0.04750593]
[1773392597859,1.18731003,2105.6,2105.0,0.04750593]
[1773392598029,1.67156908,2105.6,2105.0,0.04750593]
[1773392598225,1.18731003,2105.6,2105.0,0.50341987]
[1773392598425,1.18731003,2105.6,2105.0,1.69106234]
[1773392598659,5.2330481,2106.1,2105.1,0.45591394]
[1773392598858,1.18708452,2106.0,2105.3,0.45591394]
[1773392599057,1.18706855,2106.1,2105.5,0.45591394]
[1773392599371,1.18706855,2106.1,2105.6,0.50340632]
[1773392600557,1.18680275,2106.5,2105.6,0.50340632]
[1773392600757,1.70385726,2106.5,2105.6,0.50340632]
[1773392601053,1.70385726,2106.5,2105.6,1.6907107]
[1773392601633,1.70385726,2106.5,2105.6,0.50340632]
[1773392601832,1.70385726,2106.5,2105.6,0.45591394]
[1773392602029,1.70385726,2106.5,2105.7,0.50012256]
[1773392602244,0.002,2105.9,2105.7,0.50012256]
[1773392603539,0.002,2105.9,2105.4,1.528]
[1773392606163,0.51905451,2105.9,2104.7,0.50012256]
[1773392606372,0.51905451,2105.9,2104.8,0.50012256]
[1773392606882,0.51905451,2105.9,2105.0,0.50012256]
[1773392606883,1.18719726,2105.8,2105.0,0.50012256]
[1773392607083,1.18719726,2105.8,2105.1,0.54762624]
[1773392607382,1.18719726,2105.8,2105.2,1.527]
[1773392607581,1.18719726,2105.8,2105.2,2.07462398]
[1773392608685,1.70425177,2105.8,2105.2,2.07462398]
[1773392608988,1.18719726,2105.8,2105.3,0.50012256]
[1773392610858,0.51705451,2105.8,2105.2,1.527]
[1773392611054,0.51705451,2105.8,2104.6,0.03957002]
[1773392611283,0.51705451,2105.7,2104.8,0.50012256]
[1773392611862,4.75078905,2105.9,2104.9,0.54763075]
[1773392612289,4.75078905,2105.9,2105.0,1.526]
[1773392612471,5.26784356,2105.9,2105.1,0.54762624]
[1773392613966,5.26784356,2105.9,2105.1,1.23506814]
[1773392614170,5.26784356,2105.9,2105.2,0.50012256]
[1773392614390,5.26784356,2105.9,2105.1,1.23506814]
[1773392614391,1.18914088,2105.9,2105.3,0.54762172]
[1773392614992,1.18915247,2105.9,2105.3,0.54762172]
[1773392615572,0.002,2105.9,2105.5,0.50012256]
[1773392616363,0.002,2105.9,2105.3,0.50012256]
[1773392616856,0.002,2105.9,2105.0,6.2775071]
[1773392616857,0.51905451,2105.9,2105.0,3.21472786]
[1773392617062,0.51905451,2105.9,2105.1,0.50012256]
[1773392617363,0.002,2105.9,2105.1,0.50012256]
[1773392617674,1.18708452,2106.1,2105.3,0.50012256]
[1773392617878,1.18708452,2106.1,2105.4,0.54761947]
[1773392618664,1.18708452,2106.1,2105.4,0.50012256]
[1773392619066,1.70413903,2106.1,2105.4,0.50012256]
[1773392619685,0.51705451,2105.8,2105.3,1.527]
[1773392621115,0.51705451,2105.8,2105.1,0.54762624]
[1773392621408,0.51705451,2105.8,2105.0,0.001]
[1773392621612,1.18731003,2105.6,2105.0,0.001]
[1773392621812,0.51705451,2105.5,2105.0,0.001]
[1773392622602,0.50992947,2105.5,2104.9,0.03668999]
[1773392623913,0.51705451,2105.3,2104.9,0.03668999]
[1773392624088,0.51705451,2105.3,2104.7,1.527]
[1773392625140,0.50818776,2105.2,2104.2,0.50798647]
[1773392625718,0.50818776,2105.2,2104.3,0.55550821]
[1773392625903,0.50818776,2105.0,2104.2,0.04752399]
[1773392626104,0.50818776,2105.0,2104.1,0.50798647]
[1773392626304,0.50818776,2104.9,2104.2,1.526]
[1773392627196,0.50818776,2104.9,2103.8,1.69730525]
[1773392627498,0.50818776,2104.6,2103.8,0.001]
[1773392627919,1.18793062,2104.5,2103.8,0.001]
[1773392628119,0.50818776,2104.4,2103.8,0.001]
[1773392629290,1.18793062,2104.5,2103.8,0.5565195]
[1773392629491,1.69610458,2104.6,2103.9,2.51547861]
[1773392629705,1.69610458,2104.6,2104.0,0.04752851]
[1773392630016,1.69610458,2104.6,2104.4,0.001]
[1773392630891,1.18791682,2104.6,2104.4,0.001]
[1773392631096,0.49319873,2104.8,2104.4,0.001]
[1773392631097,1.18778908,2104.8,2104.4,0.001]
[1773392631290,0.49319873,2104.7,2104.4,0.001]
[1773392632198,1.18787418,2104.6,2104.4,0.001]
[1773392632405,1.68107291,2104.6,2104.4,0.001]
[1773392638829,1.18787418,2104.6,2104.4,0.001]
[1773392639037,1.68100428,2104.8,2104.4,0.001]
[1773392639204,1.68100428,2104.8,2104.4,1.523]
[1773392640218,1.68100428,2104.8,2104.2,0.48545862]
[1773392640413,0.49319873,2104.7,2104.1,0.001]
[1773392642034,0.49319873,2104.5,2104.1,0.001]
[1773392642635,1.18787418,2104.6,2104.1,0.001]
[1773392643019,1.68107291,2104.6,2104.1,0.001]
[1773392643217,1.68107291,2104.6,2103.9,0.48645862]
[1773392643218,0.49319873,2104.5,2103.9,0.001]
[1773392643421,0.49319873,2104.4,2103.9,0.001]
[1773392643633,1.68107291,2104.6,2103.9,0.48645862]
[1773392643830,0.49319873,2104.5,2103.9,0.48645862]
[1773392644135,0.49319873,2104.3,2103.9,0.001]
[1773392645336,1.6811858,2104.4,2104.0,0.001]
[1773392645513,0.49319873,2104.3,2103.9,0.001]
[1773392646342,1.18809999,2104.2,2103.9,0.001]
[1773392647134,0.49319873,2104.1,2103.5,0.001]
[1773392647318,1.68129872,2104.2,2103.3,0.48545862]
[1773392647514,1.68129872,2104.2,2103.0,0.48545862]
[1773392647515,0.49319873,2103.8,2103.0,0.48545862]
[1773392648226,0.49319873,2103.6,2102.7,1.67440355]
[1773392648417,0.49319873,2103.6,2102.8,0.48545862]
[1773392648617,0.49319873,2103.6,2102.9,1.515]
[1773392649322,1.68135518,2104.1,2103.2,0.48545862]
[1773392649518,0.49319873,2104.5,2103.5,0.48545862]
[1773392649728,0.49319873,2104.5,2103.6,0.53299616]
[1773392650048,0.49319873,2104.5,2103.7,1.515]
[1773392650824,0.49319873,2104.3,2103.7,1.515]
[1773392651542,0.49319873,2104.2,2103.3,1.18857917]
[1773392651717,0.49319873,2104.2,2103.4,1.516]
[1773392651921,0.49319873,2104.2,2103.3,0.48545862]
[1773392652951,1.18815645,2104.1,2103.3,1.6740447]
[1773392653124,0.49319873,2104.0,2103.3,1.6740447]
[1773392653561,0.49319873,2104.0,2103.1,1.67415588]
[1773392653746,0.49319873,2104.0,2103.4,1.515]
[1773392654046,0.49319873,2104.0,2103.1,0.48545862]
[1773392654258,0.49319873,2103.9,2102.9,1.67427514]
[1773392654618,0.49319873,2103.9,2102.9,0.48545862]
[1773392655437,0.49319873,2103.6,2102.9,1.516]
[1773392656032,0.49319873,2103.6,2102.7,1.5635579]
[1773392656443,0.49319873,2103.3,2102.7,1.516]
[1773392657545,1.18866489,2103.2,2102.7,1.516]
[1773392657748,1.68186362,2103.2,2102.7,1.516]
[1773392658461,0.49319873,2103.1,2102.6,0.01816821]
[1773392658758,1.18866489,2103.2,2102.6,1.692629]
[1773392660132,1.18866489,2103.2,2102.9,0.001]
[1773392660654,1.69100116,2103.2,2102.9,0.001]
[1773392662955,1.18865065,2103.3,2102.9,0.001]
[1773392663155,1.18856995,2103.4,2102.9,0.52328413]
[1773392663460,1.18856995,2103.4,2103.0,0.04755111]
[1773392664034,1.18851372,2103.5,2103.0,1.23628532]
[1773392664342,1.18851372,2103.5,2103.0,1.75856945]
[1773392666561,1.18851372,2103.5,2103.1,1.516]
[1773392666969,4.75290379,2104.0,2103.2,0.52228413]
[1773392667143,5.25524006,2104.0,2103.2,0.52228413]
[1773392667463,0.50233627,2103.9,2103.2,0.52228413]
[1773392667633,1.6906585,2103.9,2103.3,1.18860837]
[1773392667830,1.6906585,2103.9,2103.3,1.7108925]
[1773392668058,1.1882522,2104.0,2103.4,0.52228413]
[1773392668961,0.50233627,2103.9,2103.2,0.52228413]
[1773392669162,0.50233627,2103.9,2103.3,1.516]
[1773392669941,0.50233627,2103.7,2103.3,1.516]
[1773392670339,0.50233627,2103.6,2103.2,1.516]
[1773392671066,0.50233627,2103.6,2102.9,0.001]
[1773392672048,0.50233627,2103.4,2102.9,0.001]
[1773392672259,0.50233627,2103.4,2102.9,1.517]
[1773392674278,1.18860837,2103.3,2102.9,1.517]
[1773392674462,0.50233627,2103.2,2102.6,0.01916821]
[1773392674851,0.50233627,2103.2,2102.6,0.001]
[1773392675669,0.50233627,2103.2,2102.6,1.517]
[1773392676480,0.50233627,2103.0,2102.6,1.517]
[1773392677249,0.50233627,2103.0,2102.4,0.52328413]
[1773392677451,0.50233627,2103.0,2102.4,0.001]
[1773392678484,1.18883446,2102.9,2102.4,0.001]
[1773392678684,0.50233627,2102.8,2102.4,0.001]
[1773392679082,1.18883446,2102.9,2102.4,0.001]
[1773392679788,1.69117073,2102.9,2102.4,0.001]
[1773392681066,0.50233627,2102.8,2102.4,0.001]
[1773392681794,1.18883446,2102.9,2102.4,0.001]
[1773392682010,0.50233627,2103.1,2102.4,0.42056962]
[1773392682181,0.50233627,2103.1,2102.4,0.4681343]
[1773392682367,1.69109569,2103.1,2102.4,0.4681343]
[1773392682985,1.69109569,2103.1,2102.5,1.18906064]
[1773392683185,1.69109569,2103.1,2102.5,1.60718471]
[1773392685995,0.49144682,2103.0,2102.5,1.60718471]
[1773392686312,1.18875942,2103.1,2102.5,1.60718471]
[1773392686602,1.68015559,2103.2,2102.6,0.46452163]
[1773392687779,1.68015559,2103.2,2102.8,0.001]
[1773392687990,1.68015559,2103.2,2102.9,1.511]
[1773392690705,1.68204022,2103.4,2102.9,3.05403353]
[1773392691008,1.68204022,2103.4,2102.9,1.86520572]
[1773392691192,0.47195791,2103.3,2102.9,1.511]
[1773392692305,1.6606228,2103.2,2102.9,1.511]
[1773392692689,0.47195791,2103.1,2102.8,0.001]
[1773392693780,1.66060743,2103.3,2102.9,1.508]
[1773392694376,0.47195791,2103.2,2102.9,1.508]
[1773392695185,5.22829273,2103.4,2102.9,1.508]
[1773392695804,0.47195791,2103.3,2102.9,1.22143751]
[1773392696120,0.47195791,2102.9,2102.1,0.001]
[1773392696292,1.66118824,2102.2,2102.1,0.001]
[1773392696609,1.66118824,2102.2,2101.9,0.001]
[1773392696913,4.75675919,2102.3,2101.9,0.001]
[1773392696914,0.47195791,2102.1,2101.9,0.001]
[1773392697115,1.6611726,2102.3,2102.0,0.004]
[1773392697313,1.6611726,2102.3,2102.1,0.003]
[1773392697702,0.53570679,2102.8,2102.2,0.44685454]
[1773392697703,1.66086956,2102.8,2102.2,0.44685454]
[1773392697908,1.66086956,2102.8,2102.3,1.508]
[1773392697909,1.66085421,2102.8,2102.3,1.508]
[1773392698214,1.66085421,2102.8,2102.4,0.001]
[1773392698606,1.66085421,2102.8,2102.3,1.508]
[1773392698806,1.66085421,2102.8,2102.4,0.003]
[1773392699806,1.66085421,2102.8,2102.4,0.004]
[1773392700095,1.09527154,2102.8,2102.5,0.004]
[1773392700296,1.18882276,2103.0,2102.5,0.44528234]
[1773392700490,0.002,2103.4,2102.8,2.45472378]
[1773392700692,0.002,2103.4,2102.8,0.44528234]
[1773392700912,0.002,2103.4,2102.9,0.003]
[1773392701121,0.002,2103.4,2103.0,1.51]
[1773392701324,1.18833138,2103.8,2103.3,0.001]
[1773392701506,0.002,2103.2,2103.1,0.4413837]
[1773392701701,1.18833138,2103.8,2103.3,0.001]
[1773392701916,4.75511507,2103.9,2103.5,0.4413837]
[1773392701917,0.002,2103.9,2103.5,0.4413837]
[1773392702221,0.002,2103.9,2103.0,5.53088288]
[1773392702222,0.002,2103.9,2103.7,0.001]
[1773392702404,0.002,2103.9,2103.8,1.511]
[1773392702605,0.002,2103.9,2103.3,0.44327431]
[1773392702807,0.002,2103.9,2103.5,0.001]
[1773392703006,0.002,2103.9,2103.4,1.511]
[1773392703209,0.002,2103.9,2103.6,0.001]
[1773392703607,0.002,2103.9,2103.4,1.511]
[1773392703831,0.002,2103.9,2103.6,0.001]
[1773392704216,0.002,2103.9,2103.8,0.001]
[1773392704530,0.002,2104.5,2103.8,1.18832588]
[1773392704716,0.002,2104.5,2103.8,0.44266761]
[1773392704913,0.47395791,2104.5,2103.8,0.44266761]
[1773392706405,0.47395791,2104.5,2103.8,0.001]
[1773392706627,1.65994498,2104.4,2103.8,0.001]
[1773392706850,0.47195791,2104.3,2103.6,1.512]
[1773392707042,0.47195791,2104.3,2103.6,1.513]
[1773392710017,0.47195791,2104.1,2103.6,1.513]
[1773392710214,1.18809999,2104.2,2103.6,2.70143239]
[1773392710738,1.18809999,2104.2,2103.7,0.001]
[1773392711129,1.6600579,2104.2,2103.8,0.001]
[1773392711326,4.75239996,2104.3,2103.6,2.70142447]
[1773392711327,1.18808565,2104.3,2103.6,2.70142447]
[1773392711544,1.18808565,2104.3,2103.6,3.03359779]
[1773392711744,1.18808565,2104.3,2103.8,0.001]
[1773392711912,1.18808565,2104.3,2103.6,3.03359779]
[1773392712111,4.75210137,2104.4,2103.9,0.001]
[1773392712336,4.75210137,2104.4,2103.6,3.03359779]
[1773392712744,5.22405928,2104.4,2103.8,0.001]
[1773392713218,5.22405928,2104.4,2103.9,0.001]
[1773392713459,5.22405928,2104.4,2103.6,3.03359779]
[1773392713642,5.22405928,2104.4,2103.8,0.001]
[1773392714154,5.22405928,2104.4,2103.9,0.001]
[1773392714365,0.002,2104.1,2103.6,3.03359779]
[1773392715031,0.002,2104.1,2103.7,1.513]
[1773392715227,0.002,2104.1,2104.0,0.001]
[1773392716882,0.47395791,2104.1,2103.4,0.001]
[1773392717237,0.47395791,2104.1,2103.4,1.18954567]
[1773392717424,0.47395791,2104.1,2103.5,0.001]
[1773392717824,0.47395791,2104.1,2103.4,0.001]
[1773392718127,0.47395791,2104.1,2103.5,0.001]
[1773392718326,1.19019968,2104.1,2103.6,1.83832661]
[1773392718524,1.19019968,2104.1,2103.7,0.04753529]
[1773392718525,0.002,2104.1,2103.7,0.04753529]
[1773392718727,0.002,2104.1,2103.6,1.83832661]
[1773392718958,0.002,2104.1,2103.9,0.001]
[1773392719451,0.002,2104.1,2104.0,0.001]
[1773392719650,0.002,2104.1,2103.2,4.75420747]
[1773392719651,2.01044144,2103.6,2103.1,0.001]
[1773392720162,0.47195791,2103.6,2103.1,0.001]
[1773392720456,1.66045327,2103.5,2103.1,0.001]
[1773392720658,1.66045327,2103.5,2103.1,0.002]
[1773392722138,1.66045327,2103.5,2103.1,0.001]
[1773392723372,0.48961489,2103.4,2102.9,0.01876443]
[1773392723658,0.48961489,2103.4,2102.9,0.02076443]
[1773392724951,0.48961489,2103.4,2102.9,0.01976443]
[1773392724952,1.18860837,2103.3,2102.9,0.01976443]
[1773392725161,1.67822326,2103.3,2103.0,0.001]
[1773392727345,6.76442289,2103.6,2103.1,0.002]
[1773392727346,1.67808364,2103.6,2103.1,0.002]
[1773392727756,0.48961489,2103.5,2103.1,0.002]
[1773392728132,3.32416388,2103.5,2103.1,0.003]
[1773392728334,0.48961489,2103.4,2103.1,0.002]
[1773392729240,1.18860837,2103.3,2103.1,0.002]
[1773392729446,1.18860837,2103.3,2103.1,0.003]
[1773392729856,1.18858913,2103.4,2103.2,0.001]
[1773392732663,5.2437095,2103.5,2103.2,0.001]
[1773392733362,0.49161489,2103.9,2103.3,0.002]
[1773392733568,1.18832588,2103.8,2103.1,0.31548956]
[1773392733734,3.32549124,2103.7,2103.1,0.31548956]
[1773392734877,0.48961489,2103.5,2103.2,0.002]
[1773392735038,0.48961489,2103.5,2103.2,1.511]
[1773392735556,0.48961489,2103.5,2103.3,0.001]
[1773392736158,0.48961489,2103.5,2103.1,1.511]
[1773392736354,0.48961489,2103.5,2103.2,0.001]
[1773392736742,0.48961489,2103.4,2103.2,0.002]
[1773392736939,1.18860837,2103.3,2103.2,0.001]
[1773392738171,1.67820815,2103.4,2103.2,0.001]
[1773392738467,1.67820815,2103.4,2103.1,1.511]
[1773392738649,1.67820815,2103.4,2103.2,0.002]
[1773392739051,0.48961489,2103.6,2103.3,0.001]
[1773392739358,4.5150299,2103.7,2103.2,0.001]
[1773392739544,2.83699936,2103.6,2103.3,0.001]
[1773392741268,1.18849536,2103.5,2103.3,0.002]
[1773392741652,1.19049536,2103.5,2103.3,0.002]
[1773392742671,1.17273697,2103.5,2103.3,0.002]
[1773392743242,0.002,2103.5,2103.3,0.002]
[1773392743468,2.84126177,2103.5,2103.3,0.002]
[1773392743667,0.48961489,2103.4,2103.1,1.513]
[1773392743974,2.84126177,2103.5,2103.2,0.001]
[1773392744948,2.84126177,2103.5,2103.1,1.56154885]
[1773392744949,2.84126177,2103.5,2103.3,0.002]
[1773392745160,2.84126177,2103.5,2103.2,0.002]
[1773392745855,4.0298105,2103.5,2103.3,1.512]
[1773392746058,1.19054873,2103.5,2103.3,1.512]
[1773392746258,1.08101387,2103.5,2103.3,1.512]
[1773392746462,1.06840107,2103.5,2103.3,1.512]
[1773392746663,1.06428825,2103.5,2103.3,1.512]
[1773392746893,5.24398494,2103.8,2103.4,0.002]
[1773392747450,5.47941885,2103.8,2103.4,0.002]
[1773392748169,4.9887996,2103.8,2103.4,0.002]
[1773392748364,0.49061925,2103.7,2103.4,0.002]
[1773392748563,0.49061925,2103.7,2103.4,0.001]
[1773392748878,0.49061925,2103.7,2103.2,1.512]
[1773392749172,0.49061925,2103.7,2103.3,0.001]
[1773392749547,0.49061925,2103.7,2103.4,0.001]
[1773392749749,0.49061925,2103.7,2103.3,0.001]
[1773392750054,1.68092723,2103.9,2103.3,0.30581972]
[1773392750255,1.68092723,2103.9,2103.4,0.001]
[1773392750462,1.19030798,2103.9,2103.4,0.30473119]
[1773392751685,1.67860699,2103.9,2103.4,0.30473119]
[1773392752172,1.67860699,2103.9,2103.4,0.30373119]
[1773392752984,1.67315616,2103.9,2103.4,1.4922654]
[1773392753484,1.66879604,2103.9,2103.4,1.4922654]
[1773392753687,1.674955,2103.9,2103.4,1.4922654]
[1773392753998,0.002,2104.1,2103.5,0.30495683]
[1773392754182,0.002,2104.1,2103.6,1.49142497]
[1773392755092,0.002,2104.1,2103.6,0.30298611]
[1773392756275,0.49029901,2104.1,2103.7,1.512]
[1773392756676,0.002,2103.9,2103.7,1.512]
[1773392759190,0.48829901,2103.6,2102.6,1.49248832]
[1773392759501,0.48829901,2103.5,2102.7,0.30251256]
[1773392759788,0.48829901,2103.8,2102.7,0.35007046]
[1773392760416,0.53583897,2103.7,2102.9,0.30251256]
[1773392760870,1.18843886,2103.6,2103.0,1.49129049]
[1773392761070,1.18843886,2103.6,2103.1,0.4440616]
[1773392762601,0.48829901,2103.5,2103.1,1.512]
[1773392762887,0.48829901,2103.3,2103.1,1.512]
[1773392763091,0.48829901,2103.3,2102.7,1.18894275]
[1773392763796,0.48829901,2103.3,2102.6,0.44354661]
[1773392763797,0.48829901,2103.0,2102.6,0.001]
[1773392764399,0.48829901,2103.0,2102.5,0.001]
[1773392765280,0.48829901,2102.8,2102.5,0.001]
[1773392766005,1.18883446,2102.9,2102.5,0.001]
[1773392766371,1.67713347,2102.9,2102.5,0.001]
[1773392767773,0.48829901,2103.2,2102.5,0.001]
[1773392768090,0.48829901,2103.2,2102.5,0.43700174]
[1773392768290,0.04753996,2103.4,2102.5,0.001]
[1773392768291,0.48829901,2103.0,2102.5,0.001]
[1773392768474,0.48829901,2103.0,2102.5,1.512]
[1773392769370,1.18883446,2102.9,2102.5,1.512]
[1773392769604,1.67713347,2102.9,2102.5,1.512]
[1773392770100,1.67713347,2102.9,2102.7,0.001]
[1773392771203,0.53583897,2103.1,2102.7,0.001]
[1773392771577,1.18877793,2103.0,2102.7,0.001]
[1773392772289,0.48829901,2102.9,2102.7,0.001]
[1773392772483,0.48829901,2102.9,2102.5,1.512]
[1773392773396,0.53583897,2102.9,2102.5,1.512]
[1773392773590,1.188891,2102.8,2102.5,1.512]
[1773392773801,0.48829901,2102.7,2102.5,1.512]
[1773392774705,0.48829901,2102.7,2102.5,0.001]
[1773392775704,1.67729331,2102.7,2102.5,0.001]
[1773392776978,1.72483327,2102.7,2102.5,0.001]
[1773392777179,0.48829901,2102.6,2102.5,0.001]
[1773392777577,0.04753996,2102.7,2102.5,1.508]
[1773392777782,4.75479169,2103.2,2102.5,3.11896213]
[1773392777783,1.6769639,2103.2,2102.5,3.11896213]
[1773392778003,0.04753996,2103.1,2102.5,1.9299021]
[1773392778283,0.53583897,2103.1,2102.5,1.9299021]
[1773392778692,0.53583897,2103.1,2102.5,3.11895574]
[1773392778889,1.67695717,2103.3,2102.6,0.42039171]
[1773392779093,0.04753996,2103.2,2102.6,0.42039171]
[1773392780306,1.23622096,2103.2,2102.7,1.18894754]
[1773392780614,1.23622096,2103.2,2102.6,1.60935039]
[1773392781196,1.22375021,2103.2,2102.6,1.60935039]
[1773392781388,1.21737802,2103.2,2102.6,1.60935039]
[1773392782812,1.73805401,2103.2,2102.7,1.504]
[1773392783015,1.73805401,2103.2,2102.7,1.505]
[1773392783316,0.002,2103.0,2102.7,1.505]
[1773392783518,0.52267599,2103.0,2102.8,1.504]
[1773392784714,0.03069702,2103.2,2102.9,0.41021696]
[1773392784903,0.002,2103.2,2102.9,0.41021696]
[1773392785088,1.19066963,2103.2,2102.9,0.41021696]
[1773392785633,0.002,2103.4,2102.9,0.4087063]
[1773392787733,0.002,2103.4,2103.1,0.51618649]
[1773392789822,0.002,2103.4,2103.2,1.70179823]
[1773392790531,0.002,2103.4,2103.0,4.75500795]
[1773392790532,0.002,2103.4,2103.1,1.18868242]
[1773392792431,0.002,2103.4,2103.1,0.5088541]
[1773392794439,0.002,2103.4,2103.1,1.69752197]
[1773392795933,0.002,2103.2,2103.1,1.69752197]
[1773392799209,0.002,2103.2,2102.9,1.68703803]
[1773392799716,0.002,2103.4,2103.0,0.49820357]
[1773392799921,0.002,2103.4,2103.1,1.68492498]
[1773392800123,0.002,2103.4,2103.2,1.503]
[1773392800309,0.002,2103.4,2103.3,0.49468714]
[1773392802735,0.002,2103.4,2103.2,2.69161345]
[1773392804043,0.002,2103.4,2103.2,3.18181757]
[1773392807125,0.002,2103.4,2103.3,0.48441168]
[1773392807807,0.002,2103.9,2103.4,0.48241168]
[1773392809136,0.53463381,2103.9,2103.4,0.48241168]
[1773392809939,0.002,2103.7,2103.5,1.66812624]
[1773392810245,0.002,2103.9,2103.7,0.47812531]
[1773392810410,0.002,2104.3,2103.7,0.47812531]
[1773392810611,0.002,2104.3,2103.9,0.47662132]
[1773392810815,0.002,2104.5,2104.1,0.47662132]
[1773392811048,0.50279295,2104.9,2104.2,0.47662132]
[1773392811922,0.50279295,2104.7,2104.1,1.18815645]
[1773392812438,0.50279295,2104.7,2104.2,0.47569645]
[1773392812638,1.1877613,2104.8,2104.2,0.47569645]
[1773392813035,1.69054012,2104.9,2104.2,0.47569645]
[1773392814056,1.69054012,2104.9,2104.3,1.18804352]
[1773392815057,1.69054012,2104.9,2104.2,1.66375269]
[1773392817227,1.69054012,2104.9,2104.3,0.46819185]
[1773392818222,0.50279295,2104.8,2104.4,1.511]
[1773392819763,0.50279295,2104.7,2104.4,1.511]
[1773392821160,0.50279295,2104.7,2104.1,1.65481412]
[1773392821346,0.50279295,2104.7,2103.7,0.46221915]
[1773392821534,0.50279295,2104.7,2103.7,1.65060152]
[1773392821857,0.50279295,2104.5,2103.7,0.46221915]
[1773392822069,0.50279295,2104.5,2103.7,1.65059528]
[1773392822360,0.50279295,2104.5,2103.8,0.46073041]
[1773392822538,0.50279295,2104.5,2103.9,1.512]
[1773392823536,0.50279295,2104.5,2103.6,1.64767608]
[1773392823729,0.50279295,2104.5,2103.6,1.18843261]
[1773392824069,0.50279295,2104.3,2103.5,4.75397195]
[1773392824756,0.50279295,2104.3,2103.6,1.512]
[1773392825343,0.50279295,2104.3,2103.7,1.513]
[1773392826070,0.50279295,2104.1,2103.7,1.513]
[1773392827280,0.50279295,2104.1,2103.4,0.001]
[1773392827938,0.50279295,2103.9,2103.4,0.001]
[1773392828549,0.50279295,2103.9,2103.5,1.513]
[1773392830572,1.69111883,2103.8,2103.5,1.513]
[1773392831775,0.50279295,2103.7,2103.5,1.513]
[1773392832849,1.69118748,2103.7,2103.5,1.513]
[1773392833880,1.69118748,2103.7,2103.4,0.001]
[1773392834173,0.50279295,2103.6,2103.4,0.001]
[1773392835150,0.50279295,2103.6,2103.5,1.512]
[1773392836563,0.50279295,2103.5,2103.4,0.001]